[Event "*** SCC Grand Prix: Titled Tuesday Blitz"]
[Site "Chess.com"]
[Date "2020.06.02"]
[Round "6"]
[White "FMOlexandrProhorov"]
[Black "krasavetc"]
[Result "1-0"]
[WhiteElo "2090"]
[BlackElo "2237"]
[TimeControl "180+1"]
[EndTime "11:09:31 PDT"]
[Termination "FMOlexandrProhorov won by checkmate"]

1. e4 {[%clk 0:02:58.4]} 1... e6 {[%clk 0:02:53.2]} 2. Qe2 {[%clk 0:02:56]} 2...
d5 {[%clk 0:02:54.1]} 3. exd5 {[%clk 0:02:55.7]} 3... Qxd5 {[%clk 0:02:51.8]} 4.
Nf3 {[%clk 0:02:55.7]} 4... Nc6 {[%clk 0:02:50.9]} 5. g3 {[%clk 0:02:56]} 5...
Nd4 {[%clk 0:02:42.9]} 6. Nxd4 {[%clk 0:02:47.3]} 6... Qxh1 {[%clk 0:02:39.2]}
7. Nc3 {[%clk 0:02:37.6]} 7... c6 {[%clk 0:02:25.5]} 8. d3 {[%clk 0:02:34.2]}
8... Nf6 {[%clk 0:02:20.8]} 9. Bg5 {[%clk 0:02:31]} 9... Bc5 {[%clk 0:02:16.7]}
10. Nb3 {[%clk 0:02:23.7]} 10... Bb6 {[%clk 0:02:14.6]} 11. O-O-O {[%clk
0:02:18.1]} 11... Qxh2 {[%clk 0:02:10.7]} 12. d4 {[%clk 0:02:16.6]} 12... Nd5
{[%clk 0:02:07.8]} 13. Ne4 {[%clk 0:02:14.2]} 13... O-O {[%clk 0:02:04.9]} 14.
c4 {[%clk 0:02:10.1]} 14... Nc7 {[%clk 0:01:59.7]} 15. c5 {[%clk 0:02:09.2]}
15... f6 {[%clk 0:01:22.2]} 16. cxb6 {[%clk 0:02:05.9]} 16... fxg5 {[%clk
0:01:20.3]} 17. bxc7 {[%clk 0:02:03]} 17... e5 {[%clk 0:01:19.9]} 18. dxe5
{[%clk 0:01:52.8]} 18... Be6 {[%clk 0:01:16.8]} 19. Nbc5 {[%clk 0:01:45.4]}
19... Bd5 {[%clk 0:01:13.5]} 20. Qg4 {[%clk 0:01:31.8]} 20... Rac8 {[%clk
0:01:10.8]} 21. Qxg5 {[%clk 0:01:13.6]} 21... Rxc7 {[%clk 0:01:08.7]} 22. Be2
{[%clk 0:01:11.5]} 22... h6 {[%clk 0:01:02.5]} 23. Qe3 {[%clk 0:01:04.4]} 23...
Re7 {[%clk 0:00:55.2]} 24. f4 {[%clk 0:01:03]} 24... b6 {[%clk 0:00:49.7]} 25.
Nd3 {[%clk 0:00:55.7]} 25... Bxa2 {[%clk 0:00:38.8]} 26. Nb4 {[%clk 0:00:40.9]}
26... Bd5 {[%clk 0:00:37.6]} 27. Nxd5 {[%clk 0:00:40.2]} 27... cxd5 {[%clk
0:00:38.1]} 28. Rxd5 {[%clk 0:00:40.5]} 28... Rc7+ {[%clk 0:00:38.5]} 29. Nc3
{[%clk 0:00:40.7]} 29... Qh1+ {[%clk 0:00:31.9]} 30. Bd1 {[%clk 0:00:40.9]}
30... Rxc3+ {[%clk 0:00:31]} 31. Qxc3 {[%clk 0:00:40.2]} 31... Kh7 {[%clk
0:00:28.7]} 32. Rd2 {[%clk 0:00:38.4]} 32... Qh3 {[%clk 0:00:24.1]} 33. Bc2+
{[%clk 0:00:35.8]} 33... Kh8 {[%clk 0:00:23.6]} 34. Qf3 {[%clk 0:00:30.5]} 34...
Rc8 {[%clk 0:00:21.1]} 35. f5 {[%clk 0:00:26.4]} 35... Rc5 {[%clk 0:00:16.4]}
36. f6 {[%clk 0:00:24]} 36... Rxe5 {[%clk 0:00:13.5]} 37. fxg7+ {[%clk
0:00:23.8]} 37... Kxg7 {[%clk 0:00:13.5]} 38. Qc3 {[%clk 0:00:13.6]} 38... Qh1+
{[%clk 0:00:11.5]} 39. Bd1 {[%clk 0:00:13]} 39... Qe1 {[%clk 0:00:10.9]} 40.
Rd7+ {[%clk 0:00:11.5]} 40... Kg6 {[%clk 0:00:10.7]} 41. Qd3+ {[%clk 0:00:09.1]}
41... Kf6 {[%clk 0:00:09.2]} 42. Rd6+ {[%clk 0:00:05.7]} 42... Kg5 {[%clk
0:00:08.3]} 43. Qg6# {[%clk 0:00:05.1]} 1-0

[Event "*** SCC Grand Prix: Titled Tuesday Blitz"]
[Site "Chess.com"]
[Date "2020.06.02"]
[Round "6"]
[White "snap_man"]
[Black "Mikedannnn"]
[Result "0-1"]
[WhiteElo "2290"]
[BlackElo "2451"]
[TimeControl "180+1"]
[EndTime "11:09:32 PDT"]
[Termination "Mikedannnn won by resignation"]

1. e4 {[%clk 0:03:00.9]} 1... c5 {[%clk 0:02:56.3]} 2. Nf3 {[%clk 0:03:00.4]}
2... e6 {[%clk 0:02:55.7]} 3. g3 {[%clk 0:03:00.2]} 3... Nc6 {[%clk 0:02:55.7]}
4. Bg2 {[%clk 0:03:00.8]} 4... d6 {[%clk 0:02:56]} 5. O-O {[%clk 0:03:00.4]}
5... Nf6 {[%clk 0:02:56]} 6. Re1 {[%clk 0:03:00.5]} 6... Be7 {[%clk 0:02:53.8]}
7. d4 {[%clk 0:03:00.5]} 7... cxd4 {[%clk 0:02:52.9]} 8. Nxd4 {[%clk 0:03:00.6]}
8... Qc7 {[%clk 0:02:50]} 9. c4 {[%clk 0:02:59.3]} 9... O-O {[%clk 0:02:48.8]}
10. Nc3 {[%clk 0:02:55.8]} 10... a6 {[%clk 0:02:49.2]} 11. b3 {[%clk 0:02:48.9]}
11... Rb8 {[%clk 0:02:39.5]} 12. Bb2 {[%clk 0:02:48.4]} 12... Ne5 {[%clk
0:02:39.7]} 13. f4 {[%clk 0:02:35]} 13... Ned7 {[%clk 0:02:39.3]} 14. g4 {[%clk
0:02:22]} 14... g6 {[%clk 0:01:56.9]} 15. g5 {[%clk 0:01:52]} 15... Nh5 {[%clk
0:01:53.4]} 16. Rf1 {[%clk 0:01:41.2]} 16... e5 {[%clk 0:01:40.4]} 17. Nd5
{[%clk 0:01:40.6]} 17... Qd8 {[%clk 0:01:40.3]} 18. Nf5 {[%clk 0:01:40.6]} 18...
Re8 {[%clk 0:01:21.6]} 19. Nfxe7+ {[%clk 0:01:37]} 19... Rxe7 {[%clk 0:01:22.5]}
20. Nxe7+ {[%clk 0:01:37]} 20... Qxe7 {[%clk 0:01:21.8]} 21. fxe5 {[%clk
0:01:02.4]} 21... Nxe5 {[%clk 0:01:22.7]} 22. Bxe5 {[%clk 0:01:02]} 22... dxe5
{[%clk 0:01:22.2]} 23. Kh1 {[%clk 0:00:36.8]} 23... Be6 {[%clk 0:01:21.7]} 24.
Qd2 {[%clk 0:00:33]} 24... Nf4 {[%clk 0:01:21.8]} 25. h4 {[%clk 0:00:28.8]}
25... Rd8 {[%clk 0:01:21.2]} 26. Qf2 {[%clk 0:00:27.7]} 26... Rd3 {[%clk
0:01:09.3]} 27. Rad1 {[%clk 0:00:27.7]} 27... Qd6 {[%clk 0:01:09.4]} 28. Rxd3
{[%clk 0:00:27.6]} 28... Qxd3 {[%clk 0:01:09.4]} 29. Qf3 {[%clk 0:00:27.5]}
29... Qd2 {[%clk 0:01:08.6]} 30. Rf2 {[%clk 0:00:26.9]} 30... Qe1+ {[%clk
0:01:02.1]} 31. Kh2 {[%clk 0:00:27.4]} 31... Bg4 {[%clk 0:00:56.7]} 32. Qg3
{[%clk 0:00:26.7]} 32... Nh5 {[%clk 0:00:53.9]} 33. Qxg4 {[%clk 0:00:11.7]}
33... Qxf2 {[%clk 0:00:54]} 34. Qc8+ {[%clk 0:00:12.1]} 34... Kg7 {[%clk
0:00:53.9]} 35. Qg4 {[%clk 0:00:12]} 35... Nf4 {[%clk 0:00:53.5]} 36. b4 {[%clk
0:00:10.5]} 36... Nxg2 {[%clk 0:00:49.5]} 37. Qxg2 {[%clk 0:00:09.9]} 37...
Qxh4+ {[%clk 0:00:50.1]} 38. Kg1 {[%clk 0:00:09.7]} 38... Qe1+ {[%clk
0:00:50.7]} 39. Kh2 {[%clk 0:00:09.5]} 39... Qxb4 {[%clk 0:00:50.2]} 40. Qf1
{[%clk 0:00:09.4]} 40... Qe7 {[%clk 0:00:50.2]} 41. Qc1 {[%clk 0:00:08.1]} 41...
Qc5 {[%clk 0:00:46.3]} 42. Qf1 {[%clk 0:00:06.9]} 42... Qc6 {[%clk 0:00:46.7]}
43. c5 {[%clk 0:00:06.6]} 43... Kg8 {[%clk 0:00:35.3]} 44. Qa1 {[%clk 0:00:05]}
44... Qxe4 {[%clk 0:00:34.9]} 45. Qd1 {[%clk 0:00:03.5]} 45... Qh4+ {[%clk
0:00:34.7]} 46. Kg1 {[%clk 0:00:03]} 46... Qxg5+ {[%clk 0:00:35.5]} 0-1

[Event "*** SCC Grand Prix: Titled Tuesday Blitz"]
[Site "Chess.com"]
[Date "2020.06.02"]
[Round "6"]
[White "fischercapa"]
[Black "Titus369"]
[Result "0-1"]
[WhiteElo "2365"]
[BlackElo "2578"]
[TimeControl "180+1"]
[EndTime "11:09:33 PDT"]
[Termination "Titus369 won by checkmate"]

1. e4 {[%clk 0:03:00]} 1... c5 {[%clk 0:02:59.7]} 2. Nf3 {[%clk 0:02:59.4]} 2...
d6 {[%clk 0:03:00]} 3. d4 {[%clk 0:02:59.6]} 3... cxd4 {[%clk 0:03:00.4]} 4.
Nxd4 {[%clk 0:03:00.4]} 4... Nf6 {[%clk 0:03:00.8]} 5. Nc3 {[%clk 0:03:01]} 5...
a6 {[%clk 0:03:01.4]} 6. Bg5 {[%clk 0:02:59.2]} 6... e6 {[%clk 0:03:00.9]} 7. f3
{[%clk 0:02:56.9]} 7... Be7 {[%clk 0:02:43.4]} 8. Qd2 {[%clk 0:02:52.1]} 8... h6
{[%clk 0:02:38.8]} 9. Be3 {[%clk 0:02:51.4]} 9... b5 {[%clk 0:02:35.1]} 10.
O-O-O {[%clk 0:02:49]} 10... Qc7 {[%clk 0:02:29.9]} 11. Kb1 {[%clk 0:02:47.7]}
11... b4 {[%clk 0:02:21.8]} 12. Nce2 {[%clk 0:02:45]} 12... Nbd7 {[%clk
0:02:21.1]} 13. g4 {[%clk 0:02:43.9]} 13... Bb7 {[%clk 0:02:17.9]} 14. h4 {[%clk
0:02:44]} 14... d5 {[%clk 0:02:12.7]} 15. e5 {[%clk 0:01:47.2]} 15... Nxe5
{[%clk 0:01:57.3]} 16. Bf4 {[%clk 0:01:47.7]} 16... Bd6 {[%clk 0:01:47]} 17.
Bxe5 {[%clk 0:01:44]} 17... Bxe5 {[%clk 0:01:47.9]} 18. Qxb4 {[%clk 0:01:44]}
18... Nd7 {[%clk 0:01:28.4]} 19. f4 {[%clk 0:01:31]} 19... Bd6 {[%clk 0:01:26]}
20. Qd2 {[%clk 0:01:29.3]} 20... Nc5 {[%clk 0:01:22.5]} 21. Bg2 {[%clk
0:01:29.5]} 21... Qb6 {[%clk 0:01:08.7]} 22. f5 {[%clk 0:01:15]} 22... e5 {[%clk
0:01:06.1]} 23. Nb3 {[%clk 0:01:10.5]} 23... d4 {[%clk 0:00:54.9]} 24. Nexd4
{[%clk 0:00:16.8]} 24... exd4 {[%clk 0:00:41.3]} 25. Rhe1+ {[%clk 0:00:16.6]}
25... Kf8 {[%clk 0:00:32.4]} 26. Bxb7 {[%clk 0:00:12.3]} 26... Nxb7 {[%clk
0:00:33.3]} 27. Nxd4 {[%clk 0:00:11.2]} 27... Rd8 {[%clk 0:00:26.5]} 28. Qe3
{[%clk 0:00:08.5]} 28... Kg8 {[%clk 0:00:20.4]} 29. f6 {[%clk 0:00:06.6]} 29...
g6 {[%clk 0:00:16.3]} 30. h5 {[%clk 0:00:05.9]} 30... Bc5 {[%clk 0:00:06.1]} 31.
c3 {[%clk 0:00:05.3]} 31... Qxf6 {[%clk 0:00:03.9]} 32. Rf1 {[%clk 0:00:05.6]}
32... Qg7 {[%clk 0:00:02.2]} 33. hxg6 {[%clk 0:00:05.8]} 33... Qxg6+ {[%clk
0:00:03.1]} 34. Ka1 {[%clk 0:00:05.5]} 34... Bxd4 {[%clk 0:00:03.5]} 35. Rxd4
{[%clk 0:00:05.6]} 35... Rxd4 {[%clk 0:00:03.6]} 36. Qxd4 {[%clk 0:00:06.3]}
36... Nd6 {[%clk 0:00:04]} 37. Rf6 {[%clk 0:00:06.6]} 37... Qg5 {[%clk
0:00:03.8]} 38. Rxd6 {[%clk 0:00:06.5]} 38... Qc1# {[%clk 0:00:03.7]} 0-1

[Event "*** SCC Grand Prix: Titled Tuesday Blitz"]
[Site "Chess.com"]
[Date "2020.06.02"]
[Round "6"]
[White "GmSergioBarrientos"]
[Black "neurisdr"]
[Result "0-1"]
[WhiteElo "2594"]
[BlackElo "2771"]
[TimeControl "180+1"]
[EndTime "11:09:34 PDT"]
[Termination "neurisdr won by resignation"]

1. d4 {[%clk 0:03:00.9]} 1... Nf6 {[%clk 0:02:59.3]} 2. Nf3 {[%clk 0:03:01.8]}
2... g6 {[%clk 0:02:59.3]} 3. g3 {[%clk 0:02:58.7]} 3... Bg7 {[%clk 0:02:59.6]}
4. Bg2 {[%clk 0:02:59.6]} 4... O-O {[%clk 0:02:59.7]} 5. O-O {[%clk 0:03:00.5]}
5... d6 {[%clk 0:03:00.2]} 6. a4 {[%clk 0:03:01.3]} 6... a5 {[%clk 0:02:57.9]}
7. c4 {[%clk 0:03:00.6]} 7... c6 {[%clk 0:02:57.6]} 8. Nc3 {[%clk 0:03:00.8]}
8... Na6 {[%clk 0:02:58.1]} 9. b3 {[%clk 0:03:00.9]} 9... Nb4 {[%clk 0:02:57.5]}
10. Bb2 {[%clk 0:03:01.4]} 10... Re8 {[%clk 0:02:57]} 11. Qd2 {[%clk 0:03:01.3]}
11... Qc7 {[%clk 0:02:57.5]} 12. Rac1 {[%clk 0:02:58.4]} 12... e5 {[%clk
0:02:57.1]} 13. c5 {[%clk 0:02:40.5]} 13... e4 {[%clk 0:02:55.8]} 14. cxd6
{[%clk 0:02:40.2]} 14... Qxd6 {[%clk 0:02:55.1]} 15. Ne1 {[%clk 0:02:35.3]}
15... Qe6 {[%clk 0:02:45.8]} 16. Qd1 {[%clk 0:02:18.9]} 16... e3 {[%clk
0:02:45.5]} 17. f4 {[%clk 0:02:11.7]} 17... Ng4 {[%clk 0:02:39.3]} 18. Ne4
{[%clk 0:02:05.4]} 18... f5 {[%clk 0:02:31]} 19. Nc5 {[%clk 0:02:03.7]} 19...
Qf7 {[%clk 0:02:30.8]} 20. Ned3 {[%clk 0:02:01.1]} 20... Nd5 {[%clk 0:02:30.4]}
21. Ne5 {[%clk 0:01:57.1]} 21... Qe7 {[%clk 0:02:22.2]} 22. h3 {[%clk
0:01:49.7]} 22... Ngf6 {[%clk 0:02:14.1]} 23. Qc2 {[%clk 0:01:49.5]} 23... Be6
{[%clk 0:02:13.4]} 24. Rfd1 {[%clk 0:01:47.7]} 24... Kh8 {[%clk 0:02:12.9]} 25.
Ba3 {[%clk 0:01:46.7]} 25... Bg8 {[%clk 0:02:11.2]} 26. Qb2 {[%clk 0:01:46.5]}
26... Qc7 {[%clk 0:02:09.7]} 27. Rc2 {[%clk 0:01:44]} 27... Rad8 {[%clk
0:02:06.6]} 28. Kh2 {[%clk 0:01:41.3]} 28... Nh5 {[%clk 0:02:04.6]} 29. Ncd3
{[%clk 0:01:36.8]} 29... Ndf6 {[%clk 0:01:57.4]} 30. b4 {[%clk 0:01:34.8]} 30...
Bd5 {[%clk 0:01:55.3]} 31. bxa5 {[%clk 0:01:30.4]} 31... Ne4 {[%clk 0:01:47.1]}
32. Qb6 {[%clk 0:01:24.3]} 32... Qxb6 {[%clk 0:01:32.9]} 33. axb6 {[%clk
0:01:24]} 33... Nexg3 {[%clk 0:01:31.9]} 34. Nc5 {[%clk 0:01:18.6]} 34... Bxg2
{[%clk 0:01:09]} 35. Kxg2 {[%clk 0:01:19.5]} 35... Nxe2 {[%clk 0:00:59.7]} 36.
Nf7+ {[%clk 0:01:14.2]} 36... Kg8 {[%clk 0:00:58.9]} 37. Nxd8 {[%clk 0:01:15.1]}
37... Nexf4+ {[%clk 0:00:57.8]} 38. Kf3 {[%clk 0:01:15.1]} 38... e2 {[%clk
0:00:56.7]} 39. Re1 {[%clk 0:01:13.9]} 39... Rxd8 {[%clk 0:00:57.3]} 40. Rexe2
{[%clk 0:01:00.6]} 40... Nxe2 {[%clk 0:00:55.3]} 41. Rxe2 {[%clk 0:01:01.5]}
41... Bxd4 {[%clk 0:00:53.8]} 42. Nxb7 {[%clk 0:00:58.4]} 42... Rb8 {[%clk
0:00:52.3]} 43. Nd6 {[%clk 0:00:48.5]} 43... Rxb6 {[%clk 0:00:48.9]} 44. Re8+
{[%clk 0:00:45.5]} 44... Kg7 {[%clk 0:00:48.9]} 45. Re7+ {[%clk 0:00:45.7]}
45... Kf6 {[%clk 0:00:48.5]} 46. Ne8+ {[%clk 0:00:25]} 46... Kg5 {[%clk
0:00:47.1]} 47. Bc1+ {[%clk 0:00:25.2]} 47... Kh4 {[%clk 0:00:47.1]} 48. Rxh7
{[%clk 0:00:24.2]} 48... Rb3+ {[%clk 0:00:46.8]} 49. Ke2 {[%clk 0:00:24.5]}
49... Kg3 {[%clk 0:00:42.8]} 50. a5 {[%clk 0:00:22.7]} 50... f4 {[%clk
0:00:42.3]} 51. Rf7 {[%clk 0:00:17]} 51... f3+ {[%clk 0:00:41.7]} 52. Kd1 {[%clk
0:00:17.4]} 52... Rb1 {[%clk 0:00:40.6]} 53. Kc2 {[%clk 0:00:17.3]} 53... Ra1
{[%clk 0:00:40.6]} 54. Bd2 {[%clk 0:00:17.5]} 54... f2 {[%clk 0:00:38.7]} 55.
Nd6 {[%clk 0:00:14.5]} 55... f1=Q {[%clk 0:00:38]} 56. Ne4+ {[%clk 0:00:14.7]}
56... Kg2 {[%clk 0:00:36.2]} 57. Rxf1 {[%clk 0:00:14]} 57... Rxf1 {[%clk
0:00:36]} 0-1

[Event "*** SCC Grand Prix: Titled Tuesday Blitz"]
[Site "Chess.com"]
[Date "2020.06.02"]
[Round "6"]
[White "csati17"]
[Black "jb2mix"]
[Result "1-0"]
[WhiteElo "2582"]
[BlackElo "2698"]
[TimeControl "180+1"]
[EndTime "11:09:34 PDT"]
[Termination "csati17 won on time"]

1. c4 {[%clk 0:03:00.9]} 1... e5 {[%clk 0:03:00.1]} 2. g3 {[%clk 0:03:00]} 2...
Nf6 {[%clk 0:03:00.6]} 3. Bg2 {[%clk 0:02:59.9]} 3... d5 {[%clk 0:03:01.2]} 4.
cxd5 {[%clk 0:03:00.8]} 4... Nxd5 {[%clk 0:03:02]} 5. Nc3 {[%clk 0:03:01.3]}
5... Nb6 {[%clk 0:03:02.6]} 6. Nf3 {[%clk 0:03:01.6]} 6... Nc6 {[%clk
0:03:03.5]} 7. O-O {[%clk 0:03:02.1]} 7... Be7 {[%clk 0:03:04.4]} 8. a3 {[%clk
0:03:03]} 8... O-O {[%clk 0:03:05.3]} 9. b4 {[%clk 0:03:03.3]} 9... Re8 {[%clk
0:03:06.2]} 10. Rb1 {[%clk 0:03:03.7]} 10... Bf8 {[%clk 0:03:06.1]} 11. b5
{[%clk 0:03:03.4]} 11... Nd4 {[%clk 0:03:05.4]} 12. e3 {[%clk 0:03:02.4]} 12...
Nxf3+ {[%clk 0:03:03]} 13. Bxf3 {[%clk 0:03:03.3]} 13... Bf5 {[%clk 0:02:56.9]}
14. Bxb7 {[%clk 0:02:41.4]} 14... Rb8 {[%clk 0:02:56.5]} 15. Be4 {[%clk
0:02:39.8]} 15... Bxe4 {[%clk 0:01:35.9]} 16. Nxe4 {[%clk 0:02:40.7]} 16... a6
{[%clk 0:01:30.8]} 17. d3 {[%clk 0:02:13.7]} 17... axb5 {[%clk 0:01:28.2]} 18.
Rxb5 {[%clk 0:02:10.5]} 18... Ra8 {[%clk 0:01:27]} 19. Qb3 {[%clk 0:02:06.7]}
19... Qd7 {[%clk 0:01:24.5]} 20. Bb2 {[%clk 0:01:57.5]} 20... Bxa3 {[%clk
0:00:58]} 21. Bxe5 {[%clk 0:01:31.5]} 21... Bf8 {[%clk 0:00:58]} 22. Bb2 {[%clk
0:00:46.8]} 22... Nc8 {[%clk 0:00:47.3]} 23. Rg5 {[%clk 0:00:40.5]} 23... Kh8
{[%clk 0:00:44.6]} 24. Nf6 {[%clk 0:00:32.5]} 24... Qd8 {[%clk 0:00:37.3]} 25.
Nxe8 {[%clk 0:00:32.3]} 25... Qxg5 {[%clk 0:00:37]} 26. Qxf7 {[%clk 0:00:32.6]}
26... Qe7 {[%clk 0:00:22.4]} 27. Qxe7 {[%clk 0:00:31.7]} 27... Nxe7 {[%clk
0:00:22.7]} 28. Nxc7 {[%clk 0:00:32.6]} 28... Ra2 {[%clk 0:00:21.5]} 29. Be5
{[%clk 0:00:27.7]} 29... Nc6 {[%clk 0:00:19]} 30. Bf4 {[%clk 0:00:26]} 30... Nb4
{[%clk 0:00:17.7]} 31. Ne6 {[%clk 0:00:24.9]} 31... Be7 {[%clk 0:00:17.4]} 32.
Rb1 {[%clk 0:00:25]} 32... h6 {[%clk 0:00:17]} 33. Be5 {[%clk 0:00:20.9]} 33...
Nxd3 {[%clk 0:00:14.9]} 34. Bxg7+ {[%clk 0:00:20.9]} 34... Kg8 {[%clk
0:00:15.7]} 35. Rb7 {[%clk 0:00:12.8]} 35... Kf7 {[%clk 0:00:13.2]} 36. Nf4
{[%clk 0:00:08.6]} 36... Nxf2 {[%clk 0:00:11.2]} 37. Bd4 {[%clk 0:00:07.6]}
37... Ke8 {[%clk 0:00:07.7]} 38. Nd5 {[%clk 0:00:07]} 38... Bd8 {[%clk
0:00:05.2]} 39. Rh7 {[%clk 0:00:04.7]} 39... Ng4 {[%clk 0:00:01.2]} 40. h3
{[%clk 0:00:04.1]} 1-0

[Event "*** SCC Grand Prix: Titled Tuesday Blitz"]
[Site "Chess.com"]
[Date "2020.06.02"]
[Round "6"]
[White "Stewie_89"]
[Black "Happy1712Drummer"]
[Result "1-0"]
[WhiteElo "2628"]
[BlackElo "2450"]
[TimeControl "180+1"]
[EndTime "11:09:34 PDT"]
[Termination "Stewie_89 won by checkmate"]

1. e4 {[%clk 0:03:00.9]} 1... c6 {[%clk 0:02:59.3]} 2. d4 {[%clk 0:03:00.7]}
2... d5 {[%clk 0:03:00.2]} 3. Nd2 {[%clk 0:03:01]} 3... dxe4 {[%clk 0:02:59.7]}
4. Nxe4 {[%clk 0:03:01.9]} 4... Nf6 {[%clk 0:03:00.1]} 5. Nxf6+ {[%clk
0:03:01.4]} 5... exf6 {[%clk 0:02:59.3]} 6. Be3 {[%clk 0:03:00.7]} 6... Bd6
{[%clk 0:02:58]} 7. Bc4 {[%clk 0:03:00.5]} 7... Qc7 {[%clk 0:02:55.3]} 8. Ne2
{[%clk 0:02:58.8]} 8... O-O {[%clk 0:02:54.8]} 9. Qd2 {[%clk 0:02:58.1]} 9...
Nd7 {[%clk 0:02:54]} 10. O-O-O {[%clk 0:02:54.5]} 10... b5 {[%clk 0:02:45.1]}
11. Bd3 {[%clk 0:02:54.1]} 11... Nb6 {[%clk 0:02:43.6]} 12. Bf4 {[%clk 0:02:42]}
12... Be6 {[%clk 0:02:37.7]} 13. Kb1 {[%clk 0:02:37.4]} 13... Nd5 {[%clk
0:02:23.2]} 14. Bxd6 {[%clk 0:02:34]} 14... Qxd6 {[%clk 0:02:24.1]} 15. Ng3
{[%clk 0:02:24.4]} 15... Nb4 {[%clk 0:01:40.9]} 16. a3 {[%clk 0:02:16]} 16...
Nxd3 {[%clk 0:01:38]} 17. Qxd3 {[%clk 0:02:15.4]} 17... Qd5 {[%clk 0:01:36.1]}
18. b3 {[%clk 0:02:13.6]} 18... a5 {[%clk 0:01:25.1]} 19. f4 {[%clk 0:01:54.6]}
19... f5 {[%clk 0:00:54.3]} 20. Rhe1 {[%clk 0:01:46.6]} 20... a4 {[%clk
0:00:50.6]} 21. Re5 {[%clk 0:01:45.8]} 21... Qxg2 {[%clk 0:00:32.8]} 22. b4
{[%clk 0:01:45.2]} 22... g6 {[%clk 0:00:27.5]} 23. Rd2 {[%clk 0:01:44.6]} 23...
Qh3 {[%clk 0:00:23.1]} 24. Kb2 {[%clk 0:01:32.5]} 24... Qh4 {[%clk 0:00:21.6]}
25. Qe3 {[%clk 0:01:32]} 25... Rfe8 {[%clk 0:00:17]} 26. Rg2 {[%clk 0:01:28.6]}
26... Kf8 {[%clk 0:00:15.3]} 27. Re2 {[%clk 0:01:11.7]} 27... Rad8 {[%clk
0:00:10.6]} 28. Qc3 {[%clk 0:01:10.7]} 28... Qe7 {[%clk 0:00:08.7]} 29. d5
{[%clk 0:01:07.6]} 29... cxd5 {[%clk 0:00:04.4]} 30. Rxe6 {[%clk 0:01:01.7]}
30... Qxe6 {[%clk 0:00:04]} 31. Qh8+ {[%clk 0:01:00.5]} 31... Ke7 {[%clk
0:00:03.7]} 32. Rxe6+ {[%clk 0:01:01.1]} 32... Kxe6 {[%clk 0:00:04.6]} 33. Qe5+
{[%clk 0:01:01.3]} 33... Kd7 {[%clk 0:00:04.1]} 34. Qxd5+ {[%clk 0:01:01.9]}
34... Ke7 {[%clk 0:00:05]} 35. Qc5+ {[%clk 0:01:01.7]} 35... Kf6 {[%clk
0:00:04.6]} 36. Qxb5 {[%clk 0:00:59.1]} 36... Re6 {[%clk 0:00:04.2]} 37. Qxa4
{[%clk 0:00:58.6]} 37... Rde8 {[%clk 0:00:03]} 38. Qb5 {[%clk 0:00:56.9]} 38...
h5 {[%clk 0:00:03.9]} 39. a4 {[%clk 0:00:52.1]} 39... Kg7 {[%clk 0:00:04.8]} 40.
a5 {[%clk 0:00:51.8]} 40... h4 {[%clk 0:00:05.3]} 41. Nf1 {[%clk 0:00:51.8]}
41... Re4 {[%clk 0:00:05.2]} 42. a6 {[%clk 0:00:50.4]} 42... Rxf4 {[%clk
0:00:05.2]} 43. a7 {[%clk 0:00:50.5]} 43... Ree4 {[%clk 0:00:03.4]} 44. c3
{[%clk 0:00:45.9]} 44... Re8 {[%clk 0:00:03.3]} 45. a8=Q {[%clk 0:00:45.5]}
45... Rf2+ {[%clk 0:00:03.9]} 46. Kb3 {[%clk 0:00:42.8]} 46... Rxa8 {[%clk
0:00:04.8]} 47. Qe5+ {[%clk 0:00:42.4]} 47... Kg8 {[%clk 0:00:05]} 48. Ne3
{[%clk 0:00:42]} 48... Raa2 {[%clk 0:00:04.8]} 49. Nd5 {[%clk 0:00:42]} 49...
Rab2+ {[%clk 0:00:04.4]} 50. Kc4 {[%clk 0:00:41.8]} 50... Rbe2 {[%clk
0:00:04.9]} 51. Nf6+ {[%clk 0:00:40.5]} 51... Kf8 {[%clk 0:00:05.2]} 52. Qd6+
{[%clk 0:00:39.8]} 52... Kg7 {[%clk 0:00:05.4]} 53. Nd7 {[%clk 0:00:40]} 53...
Rg2 {[%clk 0:00:02.8]} 54. Qf8+ {[%clk 0:00:39.9]} 54... Kh7 {[%clk 0:00:01.7]}
55. Nf6# {[%clk 0:00:40.3]} 1-0